{"text_format":"1","workbook":"xlsx","n_sheets":1,"sheets":["CATÁLOGO"],"not_rendered":{"charts":0,"images":2,"macros":1,"external_links":27,"defined_names":312,"comments":0,"pivot_tables":0},"unopened":[],"bounds":{"document_bytes":16777216,"sheet_cells":100000,"rows_first":2000,"rows_last":500,"rows_between":2000,"halvings":0,"cell_chars":16384,"cell_head_chars":4096},"cells_cut":0,"cells_raw":0,"read":"whole","date_system":"1900"}

{"sheet":"CATÁLOGO","index":0,"n_rows":78,"n_cols":9,"rows_kept":78,"cut":false,"hidden":false,"merged":[[1,4,5,6],[6,4,6,6],[77,1,77,2],[29,4,33,6],[7,2,8,3],[35,2,36,3],[27,3,27,7]]}
[]
[null,null,null,null,"OBRA: AMPLIACION Y CONSTRUCCIÓN DE MUROS DE CONTENCION EN ANDADOR COSTERO( ENTRE RESTAURANTE COMIDA CHINA Y LOCAL 24 HRS.)EN LA LOCALIDAD DE SANTA ROSALÍA, MUNICIPIO DE MULEGE, B.C.S. "]
[]
[]
[]
[]
[]
[null,null,"DIRECCIÓN DE INFRAESTRUCTURA VIAL Y MOVILIDAD URBANA",null,"UBICACION : SANTA ROSALÍA",null,null,"LICITACIÓN No. LPO-000000007-032-2025","CATALOGO DE CONCEPTOS Y"]
[null,null,null,null,"MUNICIPIO :  MULEGÉ",null,null,"CONCURSO No. ","CANTIDADES DE OBRA."]
[]
[]
[]
[]
[null,null,"I.-","TERRACERIAS ",null,null,null,null,{"$f":"I40","v":0}]
[null,null,"II.-","GUARNACIONES Y BANQUETAS.",null,null,null,null,{"$f":"I45","v":0}]
[null,null,"III.-","ESTRUCTURAS OBRAS DE DRENAJE",null,null,null,null,{"$f":"I56","v":0}]
[null,null,"IV.-","PAVIMIENTOS",null,null,null,null,{"$f":"I63","v":0}]
[null,null,"V.-","SEÑALAMIENTOS YDISPOSITIVOS DE SEGURIDAD ",null,null,null,null,{"$f":"I71","v":0}]
[null,null,null,null,null,null,null,null,{"$f":"I77","v":0}]
[]
[null,null,null,null,null,null,"TOTAL :",null,{"$f":"SUM(I14:I20)","v":0}]
[]
[]
[]
[]
[]
[]
[]
[]
[null,null,null,null,{"$f":"E2","v":"OBRA: AMPLIACION Y CONSTRUCCIÓN DE MUROS DE CONTENCION EN ANDADOR COSTERO( ENTRE RESTAURANTE COMIDA CHINA Y LOCAL 24 HRS.)EN LA LOCALIDAD DE SANTA ROSALÍA, MUNICIPIO DE MULEGE, B.C.S. "}]
[]
[]
[]
[]
[null,null,null,null,0]
[null,null,"DIRECCIÓN DE INFRAESTRUCTURA VIAL Y MOVILIDAD URBANA",null,{"$f":"E8","v":"UBICACION : SANTA ROSALÍA"},null,null,{"$f":"H8","v":"LICITACIÓN No. LPO-000000007-032-2025"},"CATALOGO DE CONCEPTOS Y"]
[null,null,null,null,{"$f":"E9","v":"MUNICIPIO :  MULEGÉ"},null,null,{"$f":"H9","v":"CONCURSO No. "},"CANTIDADES DE OBRA."]
[null,null,null,null,null,null,"PRECIO","PRECIO UNITARIO"]
[null,null,"CLAVE","C O N C E P T O","UNIDAD","CANTIDAD","UNITARIO","(CON LETRA)","IMPORTE"]
[null,null,null,"TERRACERIAS "]
[null,{"$f":"MAX(B32:B40)+1","v":1},"N·CTR·CAR·1·01·007/11","Excavación para estructuras u obras de drenaje, en material tipo B, a cualquier profundidad, el material producto de la excavación se utiliza para el relleno de la misma, por unidad de obra terminada. ","m3",1226.1349999999998,null,null,{"$f":"ROUND(F41*G41,2)","v":0}]
[null,{"$f":"MAX(B33:B41)+1","v":2},"N·CTR·CAR·1·01·007/11","Relleno para estructuras u obras de drenaje, en material tipo B, a cualquier profundidad, compactado al 90% de su PVSM, con material producto de la excavación, por unidad de obra terminada. ","m3",1106.4649999999997,null,null,0]
[null,{"$f":"MAX(B34:B42)+1","v":3},"N·CTR·CAR·1·01·009/11","Escarificacion, acamellonado, tendido y compactado. Para cien por ciento (100%) , para subrasante P.U.O.T.","m3",66,null,null,0]
[null,4,"N·CTR·CAR·1·01·009/11","Construcción de PEDRAPLENES utilizando materiales no compactables procedentes de bancos propuestos por el contratista a satisfacción de la Secretaría con díámetros mayores a 120 cm, en el cuerpo del terraplén conforme lo indicado en el proyecto, por unidad de obra terminada. .","m3",1351.38,null,null,0]
[null,null,null,"SUBTOTAL TERRACERIAS ",null,null,null,null,{"$f":"SUM(I41:I44)","v":0}]
[null,null,null,"II.- GUARNICIONES YA BANQUETAS "]
[null,{"$f":"MAX(B37:B46)+1","v":5},"N·CTR·CAR·1·02·010/00","Demolición de guarniciones y banquetas de concreto existentes por encontrarse en malas condiciones y/o no dar los niveles de proyecto. incluye: corte con cortadora de disco, carga y retiro de escombro fuera de la obra hasta el lugar indicado por la supervisión, la mano de obra, herramienta y equipo necesario.","ml",98,null,null,0]
[null,6,"N·CTR·CAR·1·02·010/00","Excavación a mano en terreno con cualquier clasificación y profundidad en presencia de agua o en seco, para desplante de guarnición. incluye: trazo, nivelación, afine de fondo y taludes, retiro de material hasta 4 mts. de distancia horizontal, materiales, mano de obra, herramienta y equipo necesario.","m3",7.84,null,null,0]
[null,7,"N·CTR·CAR·1·02·010/00","Guarnición de concreto f´c=150 kg/cm2. r.n. t.m.a. 19 mm. de 15x20x40 cm de sección trapezoidal, corte de juntas verticales con cortadora de disco de diamante a una profundidad de 1/3 del peralte de la guarnición, la modulación será indicada por supervisión. incluye: cimbra, descimbrado, elaboración, colado, vibrado y curado del concreto, transporte a la siguiente posición, materiales, mano de obra y herramienta.","ml",98,null,null,0]
[null,8,"N·CTR·CAR·1·02·010/00","Confinamiento de guarnición con material seleccionado producto de la excavación, libre de boleos de más de 3\", producto de la excavación: incluye mano de obra y herramienta.","ml",98,null,null,0]
[null,9,"N·CTR·CAR·1·02·010/00","Suministro y aplicación de pintura vinílica ahulada marca Comex, en color blanco o amarillo (previamente autorizado) en tramos rectos y rojo en curvas, a dos manos en guarniciones de concreto, incluye: preparación de la superficie, limpieza, materiales, mano de obra y herramienta.","ml",98,null,null,0]
[null,10,"N·CTR·CAR·1·02·010/00","Construcción de banquetas de 8 cm de espesor, acabado, pulido y rayado escobillado, en losas de ancho en promedio indicado por supervisión, juntas frías en acabado con volteador. El concreto será f´c= 150 kg/cm2. T.m.a. 3/4\". Rev. De 8 a 10 cm premezclado elaborado en planta, incluye: muestras de banquetas en campo con el acabado antes del inicio de los trabajos con dimensión de 1.5 x 1.5 mts., suministro, colado, extendido, vibrado y acarreos del concreto, suministro y aplicación de curacreto en color blanco marca pasa o Sika, con el equipo adecuado, y en la proporción indicada por el fabricante, cimbra en fronteras, nivelación, afine, compactación al 95 % en un espesor de 15 cm y preparación de la superficie del terreno, acarreos de los materiales dentro de la obra, limpieza general antes y una vez concluidos los trabajos, carga y acarreo de los materiales no utilizables hasta el lugar indicado por supervisión, trazo y nivelación, los materiales, mano de obra,  herramienta y equipo necesario. U.o.t.\nNota: el licitante deberá de considerar las pruebas de laboratorio respectivas efectuadas por un laboratorio externo al mismo y presentarse al momento de realizar el trámite para el pago de estimaciones\n","m2",400,null,null,0]
[null,11,"N·CTR·CAR·1·02·004/02","Malla electrosoldada 6-6/4-4, por unidad de obra terminada.","m2",400,null,null,0]
[null,12,null,"Suministro y colocación de barandal de acero inoxidable Grado 304/L, de 0.90 m de altura, armado con tubos de 2\" cal. 16 y postes de soleras de 2\" x 3/16\" @ 1.65 cm promedio. Incluye: fijación, mano de obra, herramienta y todo lo necesario para su correcta ejecución. P.U.O.T","ml",0,null,null,0]
[null,{"$f":"MAX(B46:B54)+1","v":13},"N·CTR·CAR·1·02·013/00","Demolición de muro de mampostería de piedra braza existente  incluye retiro de material producto de demolición fuera de obra p.u.o.t.","M3",50.4,null,null,0]
[null,null,null,"SUBTOTAL  GUARNACIONES Y BANQUETAS",null,null,null,null,{"$f":"SUM(I47:I55)","v":0}]
[null,null,null,"III.- ESTRUCTURAS Y OBRAS DE DRENAJE "]
[]
[null,{"$f":"MAX(B38:B58)+1","v":14},"N·CTR·CAR·1·02·004/02","Acero para concreto hidráulico con limite elástico igual o mayor de fy= 4200 kg/cm², se deberá utilizar un recubrimiento anticorrosivo a base de resinas epóxicas modificadas y cemento (marca SikaTop®Armatec 110 EpoCem ó similar) por unidad de obra terminada.","kg",10770.3,null,null,{"$f":"ROUND(F59*G59,2)","v":0}]
[null,{"$f":"MAX(B40:B59)+1","v":15},"N·CTR·CAR·1·02·003/04","Concreto hidráulico normal de f´c= 300 kg/cm² en  muros de protección, incluye: suministro, colocación, cimbra, mano de obra, curado, herramienta y todo lo necesario para su correcta ejecución. por unidad de obra terminada.","m3",119.67,null,null,0]
[null,{"$f":"MAX(B41:B60)+1","v":16},"N·CTR·CAR·1·03·011/00","Formación de capas drenantes con material pétreo, compactado al 90 %, conforme lo indicado en el proyecto, por unidad de obra terminada.","m3",85.36,null,null,0]
[null,{"$f":"MAX(B43:B61)+1","v":17},"N·CTR·CAR·1·02·002/00","Concreto hidráulico simple f'c= 150 kg/cm2 en espesor de 5 cm en plantilla, por unidad de obra terminada.","m3",10.19,null,null,0]
[null,null,null,"SUBTOTAL   ESTRUCTURAS Y OBRAS DE DRENAJE",null,null,null,null,{"$f":"SUM(I59:I62)","v":0}]
[null,null,null,"IV.- PAVIMENTOS"]
[null,{"$f":"MAX(B57:B64)+1","v":18},"N·CTR·CAR·1·04·002/11","Base hidráulica, con materiales pétreos procedentes de bancos que elija el contratista incluyendo acarreos, compactada al 100 % conforme lo indicado en el proyecto, por unidad de obra terminada. (Incluye: Carga mecánica + Acarreo 1er kilómetro + 1 kilómetro subsecuente).","m3",44,null,null,0]
[null,{"$f":"MAX(B58:B65)+1","v":19},"N·CTR·CAR·1·04·004/00","Riego de impregnación con emulsiones asfálticas de rompimiento lento, por unidad de obra\nterminada.","lt",330,null,null,0]
[null,{"$f":"MAX(B59:B66)+1","v":20},"N·CTR·CAR·1·04·005/00","Riego asfáltico de liga con emulsión de rompimiento rápido, por unidad de obra terminada.","lt",84,null,null,0]
[null,{"$f":"MAX(B60:B67)+1","v":21},"N·CTR·CAR·1·04·006/14","Carpeta asfáltica con mezcla en caliente de granulometría densa con materiales procedentes de bancos que elija el contratista incluyendo acarreos, compactada al 95 % conforme lo indicado en el proyecto, incluye el cemento asfáltico PG-70H-16, por unidad de obra terminada.","m3",7,null,null,0]
[null,{"$f":"MAX(B60:B68)+1","v":22},"N·CTR·CAR·3·02·007/10","Recorte de carpetas asfálticas, por unidad de obra terminada. ","m",107,null,null,0]
[null,{"$f":"MAX(B61:B69)+1","v":23},"N·CSV·CAR·3·02·006/06","Recuperación en frío de pavimento asfáltico, el material recuperado se empleara en la formación de la subrasante, Incluye conformado, afinado, tendido, homogenización y acarreos; por unidad de obra terminada.","m3",28,null,null,0]
[null,null,null,"SUBTOTAL    PAVIMENTOS",null,null,null,null,{"$f":"SUM(I65:I70)","v":0}]
[null,null,null,"V.- SEÑALAMIENTOS Y DISPOSITIVOS DE SEGURIDAD"]
[null,{"$f":"MAX(B62:B72)+1","v":24},"N·CTR·CAR·1·07·001/00","Marcas M-1.1 Raya separadora de sentidos de circulación discontinua sencilla, con pintura termoplástica color amarillo retrorreflejante de 10 cm de ancho, por unidad de obra terminada.","m",100,null,null,0]
[null,{"$f":"MAX(B64:B73)+1","v":25},"N·CTR·CAR·1·07·001/00","Marcas M-3.1 Raya en la orilla derecha, discontinua, con pintura termoplástica color blanco retrorreflejante de 10 cm de ancho, por unidad de obra terminada.","m",200,null,null,0]
[null,{"$f":"MAX(B65:B74)+1","v":26},"N·CTR·CAR·1·07·004/02 ","Botones DH-1 retrorreflejantes y delimitadores sobre el pavimento, de forma trapecial, plásticos de dos caras, color amarillo retrorreflejante, por unidad de obra terminada.","pza",11,null,null,0]
[null,{"$f":"MAX(B66:B75)+1","v":27},"N·CTR·CAR·1·07·004/02 ","Botones DH-1 retrorreflejantes y delimitadores sobre el pavimento, de forma trapecial, plásticos de una cara, color blanco retrorreflejante, por unidad de obra terminada.","pza",8,null,null,0]
[null,null,null,"SUBTOTAL SEÑALAMIENTOS Y DISPOSITIVOS DE SEGURIDAD",null,null,null,null,{"$f":"SUM(I73:I76)","v":0}]
[null,null,null,"TOTAL",null,null,null,null,{"$f":"I77+I71+I63+I56+I45","v":0}]